fUSD/lending_fUSD_20240109
["ID","MTS","AMOUNT","RATE_DAILY","PERIOD"]
[310905932,1704814281484,-408.031465,0.00041178,30]
[310905933,1704814281494,-570.90927097,0.00041178,30]
[310905934,1704814281503,-500.0,0.00041178,30]
[310905935,1704814281512,-1835.01,0.00041178,30]
[310905936,1704814281522,-393.78149465,0.00041178,2]
[310905937,1704814281531,-870.0,0.00041178,30]
[310905938,1704814281542,-500.0,0.00041178,30]
[310905939,1704814281551,-500.0,0.00041178,10]
[310905940,1704814281562,-500.0,0.00041178,30]
[310905941,1704814281572,-835.4,0.00041178,30]
[310905942,1704814281581,-500.0,0.00041178,30]
[310905943,1704814281590,-500.0,0.00041178,30]
[310905944,1704814281599,-2298.01,0.00041178,30]
[310905945,1704814281609,-500.0,0.00041178,30]
[310905946,1704814281618,-539.47,0.00041178,30]
[310905947,1704814281628,-1150.5,0.00041178,30]
[310905948,1704814281638,-1310.11,0.00041178,30]
[310905949,1704814281647,-220.52100826,0.00041178,30]
[310905950,1704814281657,-500.0,0.00041178,30]
[310905951,1704814281667,-500.0,0.00041178,30]
[310905952,1704814281676,-1400.49,0.00041178,30]
[310905953,1704814281685,-500.0,0.00041178,30]
[310905954,1704814281695,-609.2079932,0.00041178,30]
[310905955,1704814281704,-1360.64,0.00041178,30]
[310905956,1704814281713,-500.0,0.00041178,30]
[310905957,1704814281723,-923.19,0.00041178,30]
[310905958,1704814281732,-1204.31,0.00041178,30]
[310905959,1704814281742,-395.25730092,0.00041178,30]
[310905960,1704814281752,-771.54,0.00041178,30]
[310905961,1704814281762,-1160.23,0.00041178,30]
[310905962,1704814281772,-2584.55,0.00041178,30]
[310905963,1704814281782,-500.0,0.00041178,30]
[310905964,1704814281793,-500.0,0.00041178,30]
[310905965,1704814281805,-168.86804517,0.00041178,30]
[310905966,1704814281814,-500.0,0.00041178,30]
[310905967,1704814281823,-500.0,0.00041178,30]
[310905968,1704814281833,-500.0,0.00041178,30]
[310905969,1704814281843,-1315.98,0.00041178,30]
[310905970,1704814281853,-500.0,0.00041178,10]
[310905971,1704814281863,-500.0,0.00041178,30]
[310905972,1704814281872,-1972.08,0.00041178,30]
[310905973,1704814281883,-500.0,0.00041178,30]
[310905974,1704814281893,-1668.26,0.00041178,30]
[310905975,1704814281903,-500.0,0.00041178,30]
[310905976,1704814281915,-1439.0,0.00041178,30]
[310905977,1704814281927,-1429.35,0.00041178,30]
[310905978,1704814281938,-500.0,0.00041178,30]
[310905979,1704814281948,-2461.03,0.00041178,30]
[310905980,1704814281958,-500.0,0.00041178,30]
[310905981,1704814281969,-946.78,0.00041178,30]
[310905982,1704814281980,-500.0,0.00041178,30]
[310905983,1704814281991,-500.0,0.00041178,30]
[310905984,1704814282003,-500.0,0.00041178,4]
[310905985,1704814282014,-713.51,0.00041178,30]
[310905986,1704814282025,-500.0,0.00041178,30]
[310905987,1704814282034,-1659.56,0.00041178,30]
[310905988,1704814282044,-500.0,0.00041178,30]
[310905989,1704814282053,-500.0,0.00041178,30]
[310905990,1704814282063,-500.0,0.00041178,30]
[310905991,1704814282073,-500.0,0.00041178,30]
[310905992,1704814282082,-500.0,0.00041178,30]
[310905993,1704814282093,-500.0,0.00041178,30]
[310905994,1704814282103,-500.0,0.00041178,30]
[310905995,1704814282114,-500.0,0.00041178,30]
[310905996,1704814282123,-500.0,0.00041178,30]
[310905997,1704814282134,-803.78,0.00041178,30]
[310905998,1704814282143,-500.0,0.00041178,30]
[310905999,1704814282153,-500.0,0.00041178,30]
[310906000,1704814282164,-614.42,0.00041178,30]
[310906001,1704814282174,-1000.0,0.00041178,7]
[310906002,1704814282184,-800.95,0.00041178,30]
[310906003,1704814282194,-500.0,0.00041178,30]
[310906004,1704814282204,-1758.64,0.00041178,30]
[310906005,1704814282215,-500.0,0.00041178,30]
[310906006,1704814282224,-500.0,0.00041178,30]
[310906007,1704814282236,-1000.0,0.00041178,7]
[310906008,1704814282245,-500.0,0.00041178,30]
[310906009,1704814282255,-500.0,0.00041178,30]
[310906010,1704814282265,-500.0,0.00041178,30]
[310906011,1704814282275,-1778.42,0.00041178,30]
[310906012,1704814282285,-500.0,0.00041178,30]
[310906013,1704814282295,-848.11,0.00041178,30]
[310906014,1704814282305,-3407.77,0.00041178,30]
[310906015,1704814282315,-523.04737318,0.00041178,30]
[310906016,1704814282325,-2138.28,0.00041178,30]
[310906017,1704814282335,-500.0,0.00041178,30]
[310906018,1704814282345,-500.0,0.00041178,30]
[310906019,1704814282354,-500.0,0.00041178,7]
[310906020,1704814282364,-500.0,0.00041178,30]
[310906021,1704814282374,-500.0,0.00041178,30]
[310906022,1704814282384,-500.0,0.00041178,30]
[310906023,1704814282394,-886.41,0.00041178,30]
[310906024,1704814282404,-500.0,0.00041178,2]
[310906025,1704814282415,-500.0,0.00041178,30]
[310906026,1704814282425,-500.0,0.00041178,30]
[310906027,1704814282435,-1677.31,0.00041178,30]
[310906028,1704814282446,-500.0,0.00041178,30]
[310906029,1704814282457,-500.0,0.00041178,30]
[310906030,1704814282468,-500.0,0.00041178,30]
[310906031,1704814282479,-500.0,0.00041178,30]
[310906032,1704814282490,-1138.73,0.00041178,30]
[310906033,1704814282500,-3178.9,0.00041178,30]
[310906034,1704814282511,-2732.04,0.00041178,30]
[310906035,1704814282523,-500.0,0.00041178,30]
[310906036,1704814282533,-770.65,0.00041178,30]
[310906037,1704814282543,-500.0,0.00041178,30]
[310906038,1704814282552,-2194.76,0.00041178,30]
[310906039,1704814282562,-500.0,0.00041178,30]
[310906040,1704814282573,-1008.53,0.00041178,30]
[310906041,1704814282583,-500.0,0.00041178,30]
[310906042,1704814282593,-225.56424978,0.00041178,30]
[310906043,1704814282603,-1048.75,0.00041178,30]
[310906044,1704814282614,-500.0,0.00041178,30]
[310906045,1704814282627,-500.0,0.00041178,30]
[310906046,1704814282636,-1329.34,0.00041178,30]
[310906047,1704814282648,-500.0,0.00041178,30]
[310906048,1704814282661,-2754.0,0.00041178,30]
[310906049,1704814282671,-500.0,0.00041178,30]
[310906050,1704814282682,-500.0,0.00041178,30]
[310906051,1704814282693,-625.75997248,0.00041178,30]
[310906052,1704814282704,-272.24132954,0.00041178,30]
[310906053,1704814282715,-396.12795436,0.00041178,30]
[310906054,1704814282724,-500.0,0.00041178,30]
[310906055,1704814282734,-1507.83,0.00041178,30]
[310906056,1704814282744,-500.0,0.00041178,30]
[310906057,1704814282755,-390.96603155,0.00041178,30]
[310906058,1704814282765,-680.5,0.00041178,30]
[310906059,1704814282774,-500.0,0.00041178,30]
[310906060,1704814282873,-634.38,0.00041178,30]
[310906061,1704814282883,-500.0,0.00041178,30]
[310906062,1704814282893,-2700.24,0.00041178,30]
[310906063,1704814282913,-500.0,0.00041178,30]
[310906064,1704814282926,-500.0,0.00041178,30]
[310906065,1704814282936,-1356.37,0.00041178,30]
[310906066,1704814282946,-516.52533527,0.00041178,30]
[310906067,1704814282957,-500.0,0.00041178,30]
[310906068,1704814282968,-500.0,0.00041178,30]
[310906069,1704814282979,-651.64,0.00041178,30]
[310906070,1704814282991,-500.0,0.00041178,30]
[310906071,1704814283002,-500.0,0.00041178,30]
[310906072,1704814283013,-507.7213773,0.00041178,30]
[310906073,1704814283023,-500.0,0.00041178,30]
[310906074,1704814283033,-952.35,0.00041178,30]
[310906075,1704814283044,-500.0,0.00041178,30]
[310906076,1704814283054,-500.0,0.00041178,30]
[310906077,1704814283064,-1810.23,0.00041178,30]
[310906078,1704814283073,-500.0,0.00041178,30]
[310906079,1704814283084,-587.58,0.00041178,30]
[310906080,1704814283095,-507.71291944,0.00041178,30]
[310906081,1704814283104,-625.64,0.00041178,30]
[310906082,1704814283115,-676.46,0.00041178,30]
[310906083,1704814283125,-500.0,0.00041178,30]
[310906084,1704814283135,-500.0,0.00041178,30]
[310906085,1704814283145,-500.0,0.00041178,30]
[310906086,1704814283155,-500.0,0.00041178,30]
[310906087,1704814283165,-500.0,0.00041178,30]
[310906088,1704814283175,-1006.7,0.00041178,30]
[310906089,1704814283185,-500.0,0.00041178,30]
[310906090,1704814283195,-500.0,0.00041178,30]
[310906091,1704814283205,-1919.15,0.00041178,30]
[310906092,1704814283214,-1236.35,0.00041178,30]
[310906093,1704814283225,-1037.96,0.00041178,30]
[310906094,1704814283236,-501.92437258,0.00041178,30]
[310906095,1704814283246,-500.0,0.00041178,30]
[310906096,1704814283255,-500.0,0.00041178,30]
[310906097,1704814283266,-500.0,0.00041178,30]
[310906098,1704814283275,-500.0,0.00041178,30]
[310906099,1704814283286,-500.0,0.00041178,30]
[310906100,1704814283297,-1578.69,0.00041178,30]
[310906101,1704814283307,-500.0,0.00041178,30]
[310906102,1704814283317,-1865.73,0.00041178,30]
[310906103,1704814283328,-589.31,0.00041178,30]
[310906104,1704814283337,-500.0,0.00041178,30]
[310906105,1704814283348,-500.0,0.00041178,30]
[310906106,1704814283358,-1362.93,0.00041178,30]
[310906107,1704814283368,-1537.84,0.00041178,30]
[310906108,1704814283378,-2456.66,0.00041178,30]
[310906109,1704814283388,-500.0,0.00041178,30]
[310906110,1704814283398,-500.0,0.00041178,30]
[310906111,1704814283409,-500.0,0.00041178,30]
[310906112,1704814283419,-500.0,0.00041178,30]
[310906113,1704814283431,-500.0,0.00041178,30]
[310906114,1704814283441,-500.0,0.00041178,30]
[310906115,1704814283451,-1710.93,0.00041178,30]
[310906116,1704814283461,-500.0,0.00041178,30]
[310906117,1704814283471,-516.65674443,0.00041178,30]
[310906118,1704814283481,-788.83,0.00041178,30]
[310906119,1704814283491,-500.0,0.00041178,30]
[310906120,1704814283502,-2756.46,0.00041178,30]
[310906121,1704814283511,-2705.23,0.00041178,30]
[310906122,1704814283521,-2588.77,0.00041178,30]
[310906123,1704814283531,-500.0,0.00041178,30]
[310906124,1704814283543,-946.47,0.00041178,30]
[310906125,1704814283552,-500.0,0.00041178,30]
[310906126,1704814283562,-500.0,0.00041178,30]
[310906127,1704814283572,-500.0,0.00041178,30]
[310906128,1704814283582,-500.0,0.00041178,30]
[310906129,1704814283593,-500.0,0.00041178,30]
[310906130,1704814283603,-825.0,0.00041178,30]
[310906131,1704814283615,-500.0,0.00041178,30]
[310906132,1704814283626,-500.0,0.00041178,30]
[310906133,1704814283638,-821.89,0.00041178,30]
[310906134,1704814283649,-1714.7,0.00041178,30]
[310906135,1704814283660,-987.47,0.00041178,30]
[310906136,1704814283670,-12516.53,0.00041178,30]
[310906137,1704814283680,-2523.55,0.00041178,30]
[310906138,1704814283691,-500.0,0.00041178,30]
[310906139,1704814283703,-1027.68,0.00041178,30]
[310906140,1704814283713,-1474.62,0.00041178,30]
[310906141,1704814283723,-1217.97,0.00041178,30]
[310906142,1704814283733,-300.0,0.00041178,30]
[310906143,1704814283742,-500.0,0.00041178,30]
[310906144,1704814283752,-500.0,0.00041178,30]
[310906145,1704814283762,-1454.57,0.00041178,30]
[310906146,1704814283771,-500.0,0.00041178,5]
[310906147,1704814283780,-1048.97,0.00041178,30]
[310906148,1704814283790,-2127.96,0.00041178,30]
[310906149,1704814283801,-500.0,0.00041178,30]
[310906150,1704814283811,-1299.93,0.00041178,30]
[310906151,1704814283821,-500.0,0.00041178,30]
[310906152,1704814283830,-500.0,0.00041178,30]
[310906153,1704814283840,-500.0,0.00041178,30]
[310906154,1704814283851,-500.0,0.00041178,7]
[310906155,1704814283860,-2596.84,0.00041178,30]
[310906156,1704814283870,-500.0,0.00041178,30]
[310906157,1704814283882,-725.04,0.00041178,30]
[310906158,1704814283891,-1950.17,0.00041178,30]
[310906159,1704814283901,-2106.17,0.00041178,30]
[310906160,1704814283910,-500.0,0.00041178,30]
[310906161,1704814283919,-794.41,0.00041178,30]
[310906162,1704814283928,-3285.45,0.00041178,30]
[310906163,1704814283938,-500.0,0.00041178,30]
[310906164,1704814283950,-1542.09,0.00041178,7]
[310906165,1704814283959,-500.0,0.00041178,30]
[310906166,1704814283968,-2655.79,0.00041178,30]
[310906167,1704814283979,-7119.89,0.00041178,30]
[310906168,1704814283988,-650.25,0.00041178,30]
[310906169,1704814283998,-500.0,0.00041178,30]
[310906170,1704814284008,-1087.65,0.00041178,30]
[310906171,1704814284018,-500.0,0.00041178,30]
[310906172,1704814284028,-500.0,0.00041178,30]
[310906173,1704814284038,-500.0,0.00041178,30]
[310906174,1704814284048,-977.92,0.00041178,30]
[310906175,1704814284058,-913.65,0.00041178,30]
[310906176,1704814284069,-576.88,0.00041178,30]
[310906177,1704814284078,-2362.44,0.00041178,30]
[310906178,1704814284089,-1726.68,0.00041178,30]
[310906179,1704814284099,-1112.82,0.00041178,30]
[310906180,1704814284109,-3996.86,0.00041178,30]
[310906181,1704814284120,-516.15869769,0.00041178,30]
[310906182,1704814284130,-2396.9,0.00041178,30]
[310906183,1704814284139,-500.0,0.00041178,30]
[310906184,1704814284150,-500.0,0.00041178,30]
[310906185,1704814284159,-500.0,0.00041178,30]
[310906186,1704814284169,-500.0,0.00041178,30]
[310906187,1704814284183,-2486.71,0.00041178,30]
[310906188,1704814284193,-500.0,0.00041178,30]
[310906189,1704814284203,-500.0,0.00041178,30]
[310906190,1704814284213,-3045.65,0.00041178,30]
[310906191,1704814284222,-502.99,0.00041178,30]
[310906192,1704814284232,-4277.01,0.00041178,30]
[310906193,1704814284242,-2246.6,0.00041178,30]
[310906194,1704814284252,-1448.82,0.00041178,2]
[310906195,1704814284262,-1043.39,0.00041178,30]
[310906196,1704814284272,-502.73,0.00041178,30]
[310906197,1704814284281,-534.65,0.00041178,30]
[310906198,1704814284291,-554.3597436,0.00041178,30]
[310906199,1704814284301,-891.36,0.00041178,30]
[310906200,1704814284311,-500.0,0.00041178,30]
[310906201,1704814284321,-500.0,0.00041178,30]
[310906202,1704814284331,-1353.62,0.00041178,30]
[310906203,1704814284341,-500.0,0.00041178,30]
[310906204,1704814284351,-2632.89,0.00041178,30]
[310906205,1704814284361,-1838.21,0.00041178,30]
[310906206,1704814284371,-1576.53,0.00041178,30]
[310906207,1704814284381,-1105.49,0.00041178,30]
[310906208,1704814284391,-500.0,0.00041178,30]
[310906209,1704814284401,-862.54,0.00041178,30]
[310906210,1704814284411,-1537.91,0.00041178,30]
[310906211,1704814284421,-500.0,0.00041178,30]
[310906212,1704814284431,-678.18,0.00041178,30]
[310906213,1704814284440,-500.0,0.00041178,30]
[310906214,1704814284450,-500.0,0.00041178,30]
[310906215,1704814284460,-500.0,0.00041178,30]
[310906216,1704814284469,-1574.3,0.00041178,30]
[310906217,1704814284479,-500.0,0.00041178,30]
[310906218,1704814284489,-3580.78,0.00041178,30]
[310906219,1704814284498,-4265.52,0.00041178,30]
[310906220,1704814284508,-726.93,0.00041178,30]
[310906221,1704814284518,-500.0,0.00041178,30]
[310906222,1704814284528,-515.07792309,0.00041178,30]
[310906223,1704814284540,-10916.38,0.00041178,30]
[310906224,1704814284550,-500.0,0.00041178,30]
[310906225,1704814284559,-500.0,0.00041178,30]
[310906226,1704814284569,-1982.37,0.00041178,30]
[310906227,1704814284579,-502.0728594,0.00041178,30]
[310906228,1704814284589,-500.0,0.00041178,30]
[310906229,1704814284599,-1469.95,0.00041178,30]
[310906230,1704814284608,-294.53534932,0.00041178,30]
[310906231,1704814284618,-528.12,0.00041178,30]
[310906232,1704814284628,-2986.22,0.00041178,30]
[310906233,1704814284638,-1699.32,0.00041178,30]
[310906234,1704814284648,-686.48,0.00041178,30]
[310906235,1704814284658,-3068.15,0.00041178,30]
[310906236,1704814284667,-500.0,0.00041178,30]
[310906237,1704814284677,-500.0,0.00041178,30]
[310906238,1704814284686,-1390.68,0.00041178,30]
[310906239,1704814284697,-500.0,0.00041178,30]
[310906240,1704814284706,-504.50064881,0.00041178,30]
[310906241,1704814284715,-10247.09,0.00041178,30]
[310906242,1704814284725,-1223.53,0.00041178,30]
[310906243,1704814284736,-500.0,0.00041178,30]
[310906244,1704814284745,-1685.22,0.00041178,30]
[310906245,1704814284755,-523.72081934,0.00041178,30]
[310906246,1704814284766,-500.0,0.00041178,30]
[310906247,1704814284775,-500.0,0.00041178,30]
[310906248,1704814284785,-500.0,0.00041178,30]
[310906249,1704814284794,-500.0,0.00041178,30]
[310906250,1704814284804,-500.0,0.00041178,30]
[310906251,1704814284813,-500.0,0.00041178,30]
[310906252,1704814284823,-1149.96,0.00041178,30]
[310906253,1704814284833,-6253.79,0.00041178,30]
[310906254,1704814284843,-507.22545587,0.00041178,30]
[310906255,1704814284853,-500.0,0.00041178,30]
[310906256,1704814284862,-989.82,0.00041178,30]
[310906257,1704814284872,-500.0,0.00041178,30]
[310906258,1704814284883,-500.0,0.00041178,30]
[310906259,1704814284894,-2365.66,0.00041178,30]
[310906260,1704814284904,-1963.83,0.00041178,30]
[310906261,1704814284915,-701.0,0.00041178,30]
[310906262,1704814284925,-705.46,0.00041178,30]
[310906263,1704814284935,-500.0,0.00041178,30]
[310906264,1704814284946,-500.0,0.00041178,30]
[310906265,1704814284958,-7334.72,0.00041178,30]
[310906266,1704814284970,-500.0,0.00041178,30]
[310906267,1704814284981,-2159.55,0.00041178,30]
[310906268,1704814284991,-7759.7,0.00041178,30]
[310906269,1704814285001,-500.0,0.00041178,30]
[310906270,1704814285011,-7619.16,0.00041178,30]
[310906271,1704814285021,-500.0,0.00041178,30]
[310906272,1704814285030,-2266.7,0.00041178,30]
[310906273,1704814285040,-1725.58,0.00041178,30]
[310906274,1704814285051,-1264.61,0.00041178,30]
[310906275,1704814285061,-506.90717406,0.00041178,30]
[310906276,1704814285071,-500.0,0.00041178,30]
[310906277,1704814285081,-914.32,0.00041178,30]
[310906278,1704814285092,-689.51,0.00041178,30]
[310906279,1704814285102,-500.0,0.00041178,30]
[310906280,1704814285112,-6777.19,0.00041178,30]
[310906281,1704814285124,-500.0,0.00041178,30]
[310906282,1704814285134,-1573.82,0.00041178,30]
[310906283,1704814285145,-4036.91,0.00041178,30]
[310906284,1704814285156,-2670.87,0.00041178,30]
[310906285,1704814285167,-3417.76,0.00041178,30]
[310906286,1704814285177,-649.74,0.00041178,30]
[310906287,1704814285187,-1768.69,0.00041178,30]
[310906288,1704814285198,-2656.66,0.00041178,30]
[310906289,1704814285208,-500.0,0.00041178,30]
[310906290,1704814285218,-500.0,0.00041178,30]
[310906291,1704814285228,-3624.89,0.00041178,30]
[310906292,1704814285242,-500.0,0.00041178,30]
[310906293,1704814285252,-891.81,0.00041178,30]
[310906294,1704814285262,-1969.21,0.00041178,30]
[310906295,1704814285273,-500.0,0.00041178,30]
[310906296,1704814285284,-500.0,0.00041178,30]
[310906297,1704814285296,-508.15613674,0.00041178,30]
[310906298,1704814285307,-4760.81,0.00041178,30]
[310906299,1704814285319,-2591.36,0.00041178,30]
[310906300,1704814285330,-1849.48,0.00041178,30]
[310906301,1704814285340,-500.0,0.00041178,30]
[310906302,1704814285351,-1829.62,0.00041178,30]
[310906303,1704814285362,-507.02,0.00041178,30]
[310906304,1704814285373,-1545.72,0.00041178,30]
[310906305,1704814285383,-500.0,0.00041178,30]
[310906306,1704814285394,-820.1,0.00041178,30]
[310906307,1704814285404,-1282.15,0.00041178,30]
[310906308,1704814285415,-500.0,0.00041178,30]
[310906309,1704814285427,-3330.89,0.00041178,30]
[310906310,1704814285438,-7125.45,0.00041178,30]
[310906311,1704814285449,-1041.48,0.00041178,30]
[310906312,1704814285458,-500.0,0.00041178,30]
[310906313,1704814285469,-500.0,0.00041178,30]
[310906314,1704814285479,-4552.78,0.00041178,30]
[310906315,1704814285490,-25135.11,0.00041178,30]
[310906316,1704814285502,-500.0,0.00041178,30]
[310906317,1704814285513,-383.57805908,0.00041178,30]
[310906318,1704814285523,-18448.99,0.00041178,30]
[310906319,1704814285534,-3134.7,0.00041178,30]
[310906320,1704814285546,-2000.28,0.00041178,30]
[310906321,1704814285556,-515.77363911,0.00041178,30]
[310906322,1704814285566,-500.0,0.00041178,30]
[310906323,1704814285576,-500.0,0.00041178,30]
[310906324,1704814285587,-500.0,0.00041178,30]
[310906325,1704814285598,-500.0,0.00041178,30]
[310906326,1704814285608,-500.0,0.00041178,30]
[310906327,1704814285619,-745.36,0.00041178,30]
[310906328,1704814285630,-500.0,0.00041178,30]
[310906329,1704814285640,-13835.28,0.00041178,30]
[310906330,1704814285650,-1655.6,0.00041178,30]
[310906331,1704814285661,-1353.98,0.00041178,30]
[310906332,1704814285671,-19704.83,0.00041178,30]
[310906333,1704814285682,-500.0,0.00041178,30]
[310906334,1704814285692,-2446.36,0.00041178,30]
[310906335,1704814285703,-3526.58,0.00041178,30]
[310906336,1704814285713,-11755.41,0.00041178,30]
[310906337,1704814285723,-500.0,0.00041178,30]
[310906338,1704814285734,-2085.11,0.00041178,30]
[310906339,1704814285744,-975.77,0.00041178,30]
[310906340,1704814285755,-500.0,0.00041178,7]
[310906341,1704814285765,-5456.33,0.00041178,30]
[310906342,1704814285776,-703.77,0.00041178,30]
[310906343,1704814285787,-509.68854712,0.00041178,30]
[310906344,1704814285798,-578.03,0.00041178,30]
[310906345,1704814285811,-500.0,0.00041178,30]
[310906346,1704814285821,-18929.09,0.00041178,30]
[310906347,1704814285832,-500.0,0.00041178,30]
[310906348,1704814285842,-91700.44,0.00041178,30]
[310906349,1704814285853,-517.31935291,0.00041178,30]
[310906350,1704814285863,-500.0,0.00041178,30]
[310906351,1704814285873,-610.44,0.00041178,30]
[310906352,1704814285885,-508.82623328,0.00041178,30]
[310906353,1704814285895,-4955.76,0.00041178,30]
[310906354,1704814285905,-685.04,0.00041178,30]
[310906355,1704814285915,-11389.4,0.00041178,30]
[310906356,1704814285926,-5644.78,0.00041178,30]
[310906357,1704814285935,-1534.89,0.00041178,30]
[310906358,1704814285946,-1643.59,0.00041178,30]
[310906359,1704814285956,-1919.34,0.00041178,30]
[310906360,1704814285966,-500.0,0.00041178,30]
[310906361,1704814285977,-1207.82,0.00041178,30]
[310906362,1704814285987,-500.0,0.00041178,30]
[310906363,1704814285998,-500.0,0.00041178,30]
[310906364,1704814286008,-500.0,0.00041178,30]
[310906365,1704814286018,-2205.97,0.00041178,30]
[310906366,1704814286030,-3051.16,0.00041178,30]
[310906367,1704814286041,-500.0,0.00041178,30]
[310906368,1704814286054,-1706.69,0.00041178,30]
[310906369,1704814286065,-4326.12,0.00041178,30]
[310906370,1704814286075,-23372.75,0.00041178,30]
[310906371,1704814286086,-533.27930227,0.00041178,30]
[310906372,1704814286096,-4650.3,0.00041178,30]
[310906373,1704814286106,-3602.98,0.00041178,30]
[310906374,1704814286116,-500.0,0.00041178,30]
[310906375,1704814286127,-500.0,0.00041178,30]
[310906376,1704814286137,-500.0,0.00041178,30]
[310906377,1704814286148,-500.0,0.00041178,30]
[310906378,1704814286158,-500.0,0.00041178,30]
[310906379,1704814286168,-948.23,0.00041178,30]
[310906380,1704814286178,-1484.9,0.00041178,30]
[310906381,1704814286189,-625.91,0.00041178,30]
[310906382,1704814286199,-4750.61,0.00041178,30]
[310906383,1704814286210,-517.74905522,0.00041178,30]
[310906384,1704814286220,-677.56,0.00041178,30]
[310906385,1704814286231,-570.53,0.00041178,30]
[310906386,1704814286241,-753.01,0.00041178,30]
[310906387,1704814286252,-503.36520329,0.00041178,30]
[310906388,1704814286262,-505.29095709,0.00041178,30]
[310906389,1704814286273,-8509.95,0.00041178,30]
[310906390,1704814286286,-1014.72,0.00041178,30]
[310906391,1704814286297,-1075.83,0.00041178,30]
[310906392,1704814286308,-10401.23,0.00041178,30]
[310906393,1704814286318,-500.0,0.00041178,30]
[310906394,1704814286329,-206.62346562,0.00041178,30]
[310906395,1704814286340,-2247.55,0.00041178,30]
[310906396,1704814286351,-1988.56,0.00041178,30]
[310906397,1704814286362,-1760.09,0.00041178,30]
[310906398,1704814286373,-1917.59,0.00041178,30]
[310906399,1704814286383,-500.0,0.00041178,30]
[310906400,1704814286395,-6630.63,0.00041178,30]
[310906401,1704814286406,-6677.97,0.00041178,30]
[310906402,1704814286417,-912.61,0.00041178,30]
[310906403,1704814286427,-500.0,0.00041178,30]
[310906404,1704814286438,-500.0,0.00041178,30]
[310906405,1704814286449,-7738.46,0.00041178,30]
[310906406,1704814286460,-500.0,0.00041178,30]
[310906407,1704814286471,-500.0,0.00041178,30]
[310906408,1704814286482,-14437.73,0.00041178,30]
[310906409,1704814286494,-839.67,0.00041178,30]
[310906410,1704814286505,-1402.57,0.00041178,30]
[310906411,1704814286516,-814.2,0.00041178,30]
[310906412,1704814286527,-2196.22,0.00041178,30]
[310906413,1704814286538,-500.0,0.00041178,30]
[310906414,1704814286549,-500.0,0.00041178,30]
[310906415,1704814286560,-2705.09,0.00041178,30]
[310906416,1704814286572,-500.0,0.00041178,30]
[310906417,1704814286582,-504.96431517,0.00041178,30]
[310906418,1704814286593,-500.0,0.00041178,30]
[310906419,1704814286603,-36009.51,0.00041178,30]
[310906420,1704814286614,-2863.88,0.00041178,30]
[310906421,1704814286624,-12556.6,0.00041178,30]
[310906422,1704814286634,-506.92373775,0.00041178,30]
[310906423,1704814286645,-520.07244837,0.00041178,30]
[310906424,1704814286655,-500.0,0.00041178,30]
[310906425,1704814286665,-2592.03,0.00041178,30]
[310906426,1704814286676,-3304.26,0.00041178,30]
[310906427,1704814286686,-500.0,0.00041178,30]
[310906428,1704814286697,-500.0,0.00041178,30]
[310906429,1704814286708,-2751.1,0.00041178,30]
[310906430,1704814286718,-500.0,0.00041178,30]
[310906431,1704814286729,-500.0,0.00041178,30]